bitfinex/quotes_BTCUSD_20251110
["timestamp","ask_amount","ask_price","bid_price","bid_amount"]
[1762775993640,0.027948,106220.0,106210.0,0.62453997]
[1762775994765,0.050548,106220.0,106210.0,0.62453997]
[1762775994968,0.050548,106220.0,106210.0,0.29265149]
[1762775995179,0.050548,106220.0,106210.0,0.62453997]
[1762775998239,0.050548,106220.0,106210.0,0.29265149]
[1762775998440,0.050548,106220.0,106210.0,0.62453997]
[1762776000038,0.050548,106220.0,106210.0,0.29265149]
[1762776000428,0.23883645,106220.0,106210.0,0.09601531]
[1762776000629,0.23883645,106220.0,106210.0,0.28432149]
[1762776001257,0.050548,106220.0,106210.0,0.28432149]
[1762776002174,0.050548,106220.0,106210.0,0.29265149]
[1762776002592,0.011768,106220.0,106210.0,0.66544997]
[1762776002738,8e-06,106220.0,106210.0,0.66544997]
[1762776003165,8e-06,106220.0,106210.0,0.99733845]
[1762776003365,8e-06,106220.0,106210.0,0.66544997]
[1762776005166,8e-06,106220.0,106210.0,1.32033845]
[1762776005380,8e-06,106220.0,106210.0,1.3486012]
[1762776006008,8e-06,106220.0,106210.0,1.42392722]
[1762776006652,0.0115,106250.0,106240.0,0.18825301]
[1762776006871,0.03429,106260.0,106250.0,0.18823529]
[1762776007024,0.0343381,106260.0,106250.0,0.52012377]
[1762776007246,0.0509681,106260.0,106250.0,0.52012377]
[1762776007469,0.0509681,106260.0,106250.0,0.18823529]
[1762776007701,0.0509681,106260.0,106250.0,0.52012377]
[1762776007915,0.0509681,106260.0,106250.0,0.52845377]
[1762776008362,0.0283681,106260.0,106250.0,0.52845377]
[1762776008668,0.0293681,106260.0,106250.0,0.52845377]
[1762776009017,0.0519681,106260.0,106250.0,0.52845377]
[1762776009976,0.0137381,106260.0,106250.0,0.54451377]
[1762776010560,0.24118567,106260.0,106240.0,0.19662631]
[1762776010785,0.24118567,106260.0,106250.0,0.18823529]
[1762776011332,0.24018567,106260.0,106250.0,0.18823529]
[1762776011788,0.23918567,106260.0,106250.0,0.18823529]
[1762776012004,0.0117381,106260.0,106250.0,0.54451377]
[1762776012217,4.81e-05,106260.0,106250.0,0.56936377]
[1762776012427,0.57207415,106260.0,106250.0,0.18823529]
[1762776012648,0.90396263,106260.0,106240.0,0.18848631]
[1762776012922,0.38280848,106250.0,106240.0,0.18848631]
[1762776013143,0.57104377,106250.0,106240.0,0.18848631]
[1762776013365,0.0137381,106260.0,106250.0,0.18823529]
[1762776013585,0.0127381,106260.0,106250.0,0.55386331]
[1762776013802,0.0127381,106260.0,106250.0,0.56936377]
[1762776014014,0.0117381,106260.0,106250.0,0.56936377]
[1762776014219,4.81e-05,106260.0,106250.0,0.56936377]
[1762776014650,4.81e-05,106260.0,106250.0,0.23747529]
[1762776014862,0.0010481,106260.0,106250.0,0.23747529]
[1762776015276,0.0010481,106260.0,106250.0,0.21262529]
[1762776015504,0.0519681,106260.0,106250.0,0.19656529]
[1762776015712,0.0529681,106260.0,106250.0,0.19656529]
[1762776016358,0.24118567,106260.0,106250.0,0.19656529]
[1762776016542,0.0529681,106260.0,106250.0,0.19656529]
[1762776017801,0.24118567,106260.0,106250.0,0.18823529]
[1762776020500,0.31448131,106250.0,106240.0,0.0002333]
[1762776021102,0.31448131,106250.0,106240.0,0.18848631]
[1762776021304,0.64611425,106250.0,106240.0,0.0002333]
[1762776021530,0.31448131,106250.0,106240.0,0.18848631]
[1762776021740,0.31448131,106250.0,106240.0,0.0002333]
[1762776022143,0.64611425,106250.0,106240.0,0.0002333]
[1762776023608,0.23915529,106250.0,106240.0,0.0002333]
[1762776024008,0.31448131,106250.0,106240.0,0.0002333]
[1762776025200,0.64611425,106250.0,106240.0,0.0002333]
[1762776025598,0.31448131,106250.0,106240.0,0.18848631]
[1762776025789,0.31448131,106250.0,106240.0,0.0002333]
[1762776025999,0.05092,106250.0,106240.0,0.18848631]
[1762776026405,0.05192,106250.0,106240.0,0.18848631]
[1762776026608,0.24115529,106250.0,106240.0,0.18848631]
[1762776027435,0.05292,106250.0,106240.0,0.18848631]
[1762776027642,0.24115529,106250.0,106240.0,0.18848631]
[1762776028005,0.31648131,106250.0,106240.0,0.18848631]
[1762776028212,0.12824602,106250.0,106240.0,0.18848631]
[1762776028617,0.24115529,106250.0,106240.0,0.18848631]
[1762776028733,0.03032,106250.0,106240.0,0.21199631]
[1762776028937,0.01369,106250.0,106240.0,0.21199631]
[1762776029786,0.002,106250.0,106240.0,0.56705925]
[1762776031882,0.05455,106250.0,106240.0,0.0002333]
[1762776032087,0.31811131,106250.0,106240.0,0.18848631]
[1762776032287,0.05455,106250.0,106240.0,0.18848631]
[1762776032492,0.24278529,106250.0,106240.0,0.18848631]
[1762776036071,0.64974425,106250.0,106240.0,0.0002333]
[1762776039239,0.31811131,106250.0,106240.0,0.0002333]
[1762776039482,0.64974425,106250.0,106240.0,0.0002333]
[1762776042155,0.67800692,106250.0,106240.0,0.0002333]
[1762776043226,0.7141892,106250.0,106240.0,0.0002333]
[1762776043453,0.7318136,106250.0,106240.0,0.0002333]
[1762776047081,0.7732136,106250.0,106240.0,0.0002333]
[1762776049864,0.77320668,106250.0,106240.0,0.0002333]
[1762776054174,0.77320668,106250.0,106240.0,0.0002333]
[1762776054830,0.77311256,106250.0,106240.0,0.0002333]
[1762776056244,1.09611256,106250.0,106240.0,0.0002333]
[1762776059140,1.07849508,106250.0,106240.0,0.0002333]
[1762776059349,1.09610515,106250.0,106240.0,0.0002333]
[1762776064440,0.31801719,106250.0,106240.0,0.0002333]
[1762776064861,0.64965013,106250.0,106240.0,0.0002333]
[1762776065068,0.33564029,106250.0,106240.0,0.0002333]
[1762776066705,0.66727323,106250.0,106240.0,0.0002333]
[1762776066905,0.64965013,106250.0,106240.0,0.0002333]
[1762776067112,0.66728023,106250.0,106240.0,0.0002333]
[1762776068053,0.69554325,106250.0,106240.0,0.0002333]
[1762776070498,0.74554325,106250.0,106240.0,0.0002333]
[1762776076962,0.74570599,106250.0,106240.0,0.0002333]
[1762776082739,0.74520716,106250.0,106240.0,0.0002333]
[1762776085352,1.11318512,106250.0,106240.0,0.0002333]
[1762776085650,0.78138944,106250.0,106240.0,0.0002333]
[1762776093117,1.11318512,106250.0,106240.0,0.0002333]
[1762776095673,0.74520716,106250.0,106240.0,0.0002333]
[1762776095888,0.78656716,106250.0,106240.0,0.0002333]
[1762776096721,1.15454512,106250.0,106240.0,0.0002333]
[1762776096928,1.25264685,106250.0,106240.0,0.0002333]
[1762776097678,1.15454512,106250.0,106240.0,0.0002333]
[1762776098276,0.21480073,106230.0,106220.0,0.19763611]
[1762776098483,0.54659641,106230.0,106220.0,0.19763611]
[1762776098843,0.57011641,106230.0,106220.0,0.19763611]
[1762776099221,0.57011641,106230.0,106210.0,0.53792824]
[1762776099425,0.23955845,106220.0,106210.0,0.86092824]
[1762776100358,0.05127,106220.0,106210.0,0.53213256]
[1762776100558,0.23955845,106220.0,106210.0,0.86401876]
[1762776100760,0.23955845,106220.0,106210.0,0.52922308]
[1762776100964,0.23955845,106220.0,106210.0,0.53622308]
[1762776101194,0.23955845,106220.0,106210.0,0.86801876]
[1762776102218,0.05127,106220.0,106210.0,0.86801876]
[1762776102969,0.02775,106220.0,106210.0,0.86801876]
[1762776103184,0.01131,106220.0,106210.0,0.90810876]
[1762776103634,0.01131,106220.0,106210.0,0.88465876]
[1762776109577,0.23955845,106220.0,106210.0,0.86801876]
[1762776109980,0.23955845,106220.0,106210.0,0.86871889]
[1762776111345,0.57135413,106220.0,106210.0,0.06787249]
[1762776111491,0.57135413,106220.0,106210.0,0.25617867]
[1762776112336,0.57135413,106220.0,106210.0,0.25217867]
[1762776112683,0.57135413,106220.0,106210.0,0.25417867]
[1762776113095,0.57135413,106220.0,106210.0,0.06287249]
[1762776113299,0.90314981,106220.0,106210.0,0.06387249]
[1762776113505,0.57135413,106220.0,106210.0,0.06387249]
[1762776113727,0.57135413,106220.0,106210.0,0.25217867]
[1762776114621,0.57135413,106220.0,106210.0,0.19217867]
[1762776115520,0.39672778,106220.0,106210.0,0.19217867]
[1762776115666,0.41270778,106220.0,106210.0,0.19217867]
[1762776116068,0.41270778,106220.0,106210.0,0.00387249]
[1762776117564,0.42868778,106220.0,106210.0,0.00387249]
[1762776117767,0.78875324,106220.0,106210.0,0.19217867]
[1762776117992,0.45695756,106220.0,106210.0,0.19217867]
[1762776118311,0.44097756,106220.0,106210.0,0.19217867]
[1762776118520,0.37604546,106220.0,106210.0,0.19217867]
[1762776118722,0.37604546,106220.0,106210.0,0.19117867]
[1762776118924,0.58031391,106220.0,106210.0,0.19117867]
[1762776119129,0.58031391,106220.0,106210.0,0.18917867]
[1762776119483,0.58031391,106220.0,106210.0,0.19017867]
[1762776119668,0.56433391,106220.0,106210.0,0.19017867]
[1762776120078,0.58031391,106220.0,106210.0,0.19017867]
[1762776120318,0.23253823,106220.0,106210.0,0.19017867]
[1762776120658,0.04424978,106220.0,106210.0,0.19017867]
[1762776121429,0.23253823,106220.0,106210.0,0.19017867]
[1762776122022,0.23253823,106220.0,106210.0,0.24066867]
[1762776122023,0.18828845,106220.0,106210.0,0.24066867]
[1762776122227,0.66282338,106230.0,106210.0,0.57246435]
[1762776122427,0.68046092,106230.0,106210.0,0.57176422]
[1762776122632,0.70872924,106230.0,106220.0,0.18828845]
[1762776123030,0.39291356,106230.0,106220.0,0.18828845]
[1762776123193,0.39291356,106230.0,106210.0,0.22311854]
[1762776123398,0.72470924,106230.0,106210.0,0.22411854]
[1762776124026,0.72470924,106230.0,106210.0,0.22311854]
[1762776124237,0.72670924,106230.0,106210.0,0.22311854]
[1762776124422,0.68434924,106230.0,106210.0,0.22311854]
[1762776124620,0.18828845,106220.0,106210.0,0.22311854]
[1762776124844,0.18828845,106220.0,106210.0,0.20057854]
[1762776125183,0.6920917,106230.0,106210.0,0.20057854]
[1762776125388,0.18828845,106220.0,106210.0,0.20057854]
[1762776125815,0.18828845,106220.0,106210.0,0.20157854]
[1762776126390,0.18828845,106220.0,106210.0,0.20057854]
[1762776126594,0.18828845,106220.0,106210.0,0.20157854]
[1762776128021,0.20426845,106220.0,106210.0,0.01327236]
[1762776128249,0.55204413,106220.0,106210.0,0.00117236]
[1762776128496,0.55204413,106220.0,106210.0,0.00187249]
[1762776128692,0.88383981,106220.0,106210.0,0.00187249]
[1762776128915,0.91210957,106220.0,106210.0,0.00187249]
[1762776129770,0.58031389,106220.0,106210.0,0.00187249]
[1762776130196,0.91210957,106220.0,106210.0,0.00187249]
[1762776131356,0.94829185,106220.0,106210.0,0.00187249]
[1762776131531,0.30232994,106220.0,106210.0,0.00187249]
[1762776131742,0.9659213,106220.0,106210.0,0.00187249]
[1762776132142,0.9659213,106220.0,106210.0,0.00087249]
[1762776132348,0.94929185,106220.0,106210.0,0.00087249]
[1762776132693,0.95029185,106220.0,106210.0,0.00087249]
[1762776132868,0.28670049,106220.0,106210.0,0.00087249]
[1762776133102,0.95029185,106220.0,106210.0,0.00087249]
[1762776134480,0.9895946,106220.0,106210.0,0.00087249]
[1762776135134,0.96791775,106220.0,106210.0,0.00087249]
[1762776136124,2.19981375,106220.0,106210.0,0.00087249]
[1762776136331,2.39412275,106220.0,106210.0,0.00087249]
[1762776136889,2.06261099,106220.0,106210.0,0.00087249]
[1762776138359,2.06161099,106220.0,106210.0,0.00087249]
[1762776138498,2.15871272,106220.0,106210.0,0.00087249]
[1762776138702,2.16271272,106220.0,106210.0,0.00087249]
[1762776139013,2.16071272,106220.0,106210.0,0.00087249]
[1762776139242,1.76234272,106220.0,106210.0,0.00087249]
[1762776139458,1.76834272,106220.0,106210.0,0.00087249]
[1762776139659,1.11408599,106220.0,106210.0,0.00087249]
[1762776140016,0.96340599,106220.0,106210.0,0.00087249]
[1762776140226,1.00476599,106220.0,106210.0,0.00087249]
[1762776140580,0.92722371,106220.0,106210.0,0.00087249]
[1762776140880,0.67268639,106220.0,106210.0,0.00087249]
[1762776141177,1.00476599,106220.0,106210.0,0.00087249]
[1762776141415,1.00176599,106220.0,106210.0,0.00087249]
[1762776141624,0.99876599,106220.0,106210.0,0.00087249]
[1762776141864,1.00076599,106220.0,106210.0,0.00087249]
[1762776142111,0.98514009,106220.0,106210.0,0.00087249]
[1762776142313,0.66214009,106220.0,106210.0,0.00087249]
[1762776142519,0.67975823,106220.0,106210.0,0.00087249]
[1762776147396,2.49547423,106220.0,106210.0,0.00087249]
[1762776147549,2.14149523,106220.0,106210.0,0.00087249]
[1762776148101,1.84580323,106220.0,106210.0,0.00087249]
[1762776152244,1.86610788,106220.0,106210.0,0.00087249]
[1762776153405,1.86610788,106220.0,106210.0,2.49e-06]
[1762776153609,1.63552218,106210.0,106200.0,0.00464]
[1762776153824,1.63552218,106210.0,106200.0,0.00473064]
[1762776153825,2.17938414,106210.0,106200.0,0.00473064]
[1762776154045,2.11229414,106210.0,106200.0,0.00473064]
[1762776154261,1.93044678,106210.0,106200.0,0.00496407]
[1762776154486,1.88662878,106210.0,106200.0,0.00496407]
[1762776154633,1.71644178,106210.0,106200.0,0.00496407]
[1762776154846,1.26533878,106210.0,106200.0,0.00496407]
[1762776155054,0.64094098,106210.0,106200.0,0.00496407]
[1762776155253,0.97502058,106210.0,106200.0,0.00496407]
[1762776155812,1.08836858,106210.0,106200.0,0.00496407]
[1762776156028,0.97502058,106210.0,106200.0,0.00496407]
[1762776156205,1.26840558,106210.0,106200.0,0.00496407]
[1762776156654,1.36650731,106210.0,106200.0,0.00496407]
[1762776157098,1.36750731,106210.0,106200.0,0.00496407]
[1762776158879,1.40886731,106210.0,106200.0,0.00496407]
[1762776161323,1.88761358,106210.0,106200.0,0.00496407]
[1762776162748,1.88762016,106210.0,106200.0,0.00496407]
[1762776168047,2.21969976,106210.0,106200.0,0.00496407]
[1762776168256,2.26449111,106200.0,106190.0,0.0002]
[1762776168460,2.64296583,106200.0,106190.0,0.00068149]
[1762776168752,2.74106756,106200.0,106190.0,0.00068149]
[1762776168957,2.74483853,106200.0,106190.0,0.00068149]
[1762776170164,2.74583853,106200.0,106190.0,0.00068149]
[1762776170339,2.75644561,106200.0,106190.0,0.00068149]
[1762776172729,0.02607,106170.0,106160.0,0.19470938]
[1762776172903,0.02607,106170.0,106160.0,0.19475738]
[1762776172904,0.10139602,106170.0,106160.0,0.19475738]
[1762776173522,0.02607,106170.0,106160.0,0.22153738]
[1762776173729,0.10360836,106190.0,106170.0,0.18836092]
[1762776173867,0.28128971,106190.0,106180.0,0.20009938]
[1762776174075,0.30506767,106190.0,106180.0,0.20009938]
[1762776175503,0.11672602,106190.0,106180.0,0.20009938]
[1762776175763,0.30506767,106190.0,106180.0,0.20009938]
[1762776176172,0.30506767,106190.0,106180.0,0.20109938]
[1762776176983,0.07532602,106190.0,106180.0,0.21613938]
[1762776177189,0.26366767,106190.0,106180.0,0.24101938]
[1762776177390,0.28130286,106190.0,106180.0,0.02778]
[1762776177718,0.29650286,106190.0,106180.0,0.01274]
[1762776177941,0.64456246,106190.0,106180.0,0.001]
[1762776178389,0.74266419,106190.0,106180.0,0.001]
[1762776178955,0.74266663,106190.0,106180.0,0.001]
[1762776179175,0.74266663,106190.0,106180.0,0.00146698]
[1762776180907,0.3124853,106190.0,106180.0,0.00146698]
[1762776181454,0.6445649,106190.0,106180.0,0.00146698]
[1762776182894,0.6445649,106190.0,106180.0,0.18982636]
[1762776183263,0.64457243,106190.0,106180.0,0.18982636]
[1762776183477,0.12415118,106190.0,106180.0,0.18982636]
[1762776183686,0.29651283,106190.0,106180.0,0.18982636]
[1762776183889,0.10817118,106190.0,106180.0,0.18982636]
[1762776184381,0.29651283,106190.0,106180.0,0.18982636]
[1762776184878,0.09297118,106190.0,106180.0,0.24148636]
[1762776186526,0.26366767,106190.0,106180.0,0.24148636]
[1762776187432,0.71260301,106190.0,106180.0,0.00146698]
[1762776187585,0.76643137,106190.0,106180.0,0.00146698]
[1762776188419,1.62370737,106190.0,106180.0,0.00146698]
[1762776188617,1.50689237,106190.0,106180.0,0.00146698]
[1762776188827,1.08259137,106190.0,106180.0,0.00146698]
[1762776189193,1.11087365,106190.0,106180.0,0.00146698]
[1762776189614,0.77879405,106190.0,106180.0,0.00146698]
[1762776189789,1.39098365,106190.0,106180.0,0.00146698]
[1762776190683,1.42231192,106190.0,106180.0,0.00146698]
[1762776191550,1.42231192,106190.0,106180.0,0.00046698]
[1762776191551,1.42131192,106190.0,106180.0,0.00046698]
[1762776191750,1.75831066,106190.0,106180.0,0.00046698]
[1762776191968,1.76913211,106190.0,106180.0,0.00046698]
[1762776192167,0.51137713,106170.0,106160.0,4.8e-05]
[1762776192362,1.35120432,106170.0,106160.0,4.8e-05]
[1762776192568,1.36718432,106170.0,106160.0,4.8e-05]
[1762776192719,1.39547284,106170.0,106160.0,4.8e-05]
[1762776192927,1.72755244,106170.0,106160.0,4.8e-05]
[1762776193343,1.73636638,106170.0,106160.0,4.8e-05]
[1762776193546,1.73636638,106170.0,106160.0,0.001048]
[1762776194154,1.07220718,106170.0,106160.0,0.001048]
[1762776194362,1.73636638,106170.0,106160.0,0.001048]
[1762776194572,1.73736638,106170.0,106160.0,0.001048]
[1762776194766,1.73736638,106170.0,106160.0,4.8e-05]
[1762776197841,1.73736638,106170.0,106160.0,0.00051511]
[1762776199016,1.73802814,106170.0,106160.0,0.00051511]
[1762776199842,1.77421042,106170.0,106160.0,0.00051511]
[1762776200369,1.78421041,106170.0,106160.0,0.00051511]
[1762776200711,1.78321041,106170.0,106160.0,0.00051511]
[1762776200912,1.78421041,106170.0,106160.0,0.00051511]
[1762776201133,1.78521041,106170.0,106160.0,0.00051511]
[1762776204695,0.55757714,106160.0,106150.0,0.0002]
[1762776204902,3.73159179,106160.0,106150.0,0.00029049]
[1762776205034,3.73159179,106160.0,106150.0,4.9e-07]
[1762776205240,3.73159179,106160.0,106130.0,0.0002]
[1762776205241,2.54761265,106140.0,106130.0,0.0002]
[1762776205444,2.25870363,106140.0,106130.0,0.00033619]
[1762776205688,1.84199663,106140.0,106130.0,0.00033619]
[1762776205898,1.96839409,106140.0,106130.0,0.00033619]
[1762776206471,2.30080457,106140.0,106130.0,0.00033619]
[1762776206654,1.96839409,106140.0,106130.0,0.00033619]
[1762776206854,1.96939409,106140.0,106130.0,0.00033619]
[1762776207274,2.04067109,106140.0,106130.0,0.00033619]
[1762776208136,2.37308157,106140.0,106130.0,0.00033619]
[1762776208349,2.38308156,106140.0,106130.0,0.00033619]
[1762776210045,1.38585012,106140.0,106130.0,0.00033619]
[1762776210243,2.38308156,106140.0,106130.0,0.00033619]
[1762776214203,2.4033033,106140.0,106130.0,0.00033619]
[1762776214601,2.4033033,106140.0,106130.0,0.00103711]
[1762776214816,0.2246304,106130.0,106120.0,0.0002]
[1762776214980,3.12129913,106130.0,106120.0,0.0002]
[1762776215754,3.12507271,106130.0,106120.0,0.0002]
[1762776216172,3.1452987,106130.0,106120.0,0.0002]
[1762776216347,3.1462987,106130.0,106120.0,0.0002]
[1762776216692,0.55764815,106120.0,106110.0,0.0002]
[1762776216896,3.76293134,106120.0,106110.0,0.00024816]
[1762776217138,3.78315884,106120.0,106110.0,0.00024816]
[1762776217347,3.78693303,106120.0,106110.0,0.00024816]
[1762776217548,3.21248688,106110.0,106100.0,0.0002]
[1762776217754,3.34623292,106110.0,106100.0,0.0002]
[1762776217957,3.44433465,106110.0,106100.0,0.0002]
[1762776218184,3.48264233,106110.0,106100.0,0.0002]
[1762776218317,3.50287508,106110.0,106100.0,0.0002]
[1762776218889,3.50287508,106110.0,106090.0,0.0002]
[1762776218890,0.23468368,106100.0,106090.0,0.0002]
[1762776219212,3.33770514,106100.0,106090.0,0.0002]
[1762776219367,3.43580687,106100.0,106090.0,0.0002]
[1762776220106,3.43580687,106100.0,106090.0,0.0012]
[1762776220516,3.44513432,106100.0,106090.0,0.0012]
[1762776220713,3.51617294,106100.0,106090.0,0.0012]
[1762776220912,3.18376246,106100.0,106090.0,0.0012]
[1762776221500,3.51617294,106100.0,106090.0,0.0012]
[1762776222259,3.18376246,106100.0,106090.0,0.0012]
[1762776222679,2.08518598,106100.0,106090.0,0.0012]
[1762776222904,2.41759646,106100.0,106090.0,0.0012]
[1762776224128,0.59994206,106100.0,106090.0,0.0012]
[1762776224330,1.32645734,106100.0,106090.0,0.0012]
[1762776225600,1.32645734,106100.0,106090.0,0.00213505]
[1762776225986,1.33613165,106100.0,106090.0,0.00213505]
[1762776226448,1.67854212,106100.0,106090.0,0.00213505]
[1762776226661,1.68346547,106100.0,106090.0,0.00213505]
[1762776226867,0.52098298,106060.0,106050.0,0.0002]
[1762776227067,1.05247953,106060.0,106050.0,0.00068164]
[1762776227348,1.06845953,106060.0,106050.0,0.00068164]
[1762776227968,1.39145953,106060.0,106050.0,0.00068164]
[1762776228173,1.39145953,106060.0,106050.0,0.00368164]
[1762776228560,1.79422123,106060.0,106050.0,0.00068164]
[1762776228710,1.46181075,106060.0,106050.0,0.00068164]
[1762776228920,3.7280405,106060.0,106050.0,0.00268164]
[1762776229300,3.75636281,106060.0,106050.0,0.00268164]
[1762776229423,0.47663807,106040.0,106030.0,0.0002]
[1762776229630,1.37887773,106040.0,106030.0,0.00024812]
[1762776229855,1.39485773,106040.0,106030.0,0.00024812]
[1762776230280,2.08645049,106040.0,106030.0,0.00024812]
[1762776230439,2.3530461,106030.0,106020.0,0.0002]
[1762776230632,2.50956785,106030.0,106020.0,0.00024815]
[1762776230838,2.1288207,106030.0,106020.0,0.00024815]
[1762776231452,1.7997017,106030.0,106020.0,0.00024815]
[1762776231650,1.5753357,106030.0,106020.0,0.00024815]
[1762776232320,1.5773357,106030.0,106020.0,0.00024815]
[1762776232557,1.5793357,106030.0,106020.0,0.00024815]
[1762776232901,1.5793357,106030.0,106020.0,0.00188588]
[1762776233307,1.2864647,106030.0,106020.0,0.00188588]
[1762776233731,1.0524357,106030.0,106020.0,0.00188588]
[1762776236298,0.51358161,106030.0,106020.0,0.00188588]
[1762776236515,0.67478142,106030.0,106020.0,0.00188588]
[1762776236723,1.1306037,106030.0,106020.0,0.00188588]
[1762776236942,1.4246775,106030.0,106020.0,0.00188588]
[1762776237159,1.4246775,106030.0,106000.0,10.1]
[1762776237160,0.47273525,106010.0,106000.0,10.1]
[1762776237377,0.44526527,106010.0,106000.0,10.10014418]
[1762776237584,0.74531908,106010.0,106000.0,10.10014418]
[1762776237804,0.74531908,106010.0,106000.0,10.10061234]
[1762776238253,0.74531908,106010.0,106000.0,9.84860448]
[1762776238254,3.06831908,106010.0,106000.0,9.84860448]
[1762776238462,3.12322773,106010.0,106000.0,9.84046945]
[1762776238675,3.12322773,106010.0,106000.0,9.82199307]
[1762776238895,3.12322773,106010.0,106000.0,9.73510645]
[1762776239107,3.12322773,106010.0,106000.0,9.73410645]
[1762776239108,3.15022826,106010.0,106000.0,9.73410645]
[1762776239317,3.15022826,106010.0,106000.0,9.25601088]
[1762776239529,3.12322773,106010.0,106000.0,9.25501088]
[1762776240420,3.15022826,106010.0,106000.0,9.25501088]
[1762776240843,3.12422773,106010.0,106000.0,9.25501088]
[1762776241061,3.10788473,106010.0,106000.0,9.25501088]
[1762776241260,1.52286188,106010.0,106000.0,9.25501088]
[1762776241466,1.56442188,106010.0,106000.0,9.25501088]
[1762776241670,1.04716016,106010.0,106000.0,9.25501088]
[1762776241883,1.18792978,106010.0,106000.0,9.25501088]
[1762776242140,0.91257804,106010.0,106000.0,9.25501088]
[1762776242349,0.90385597,106010.0,106000.0,9.25501088]
[1762776242606,1.18792978,106010.0,106000.0,9.25501088]
[1762776242840,1.29475378,106010.0,106000.0,9.25501088]
[1762776243282,1.25319378,106010.0,106000.0,9.25501088]
[1762776243519,0.64658354,106010.0,106000.0,9.25501088]
[1762776243736,0.68814354,106010.0,106000.0,9.25501088]
[1762776243980,0.40132582,106010.0,106000.0,9.25501088]
[1762776244445,0.36414354,106010.0,106000.0,9.25501088]
[1762776244691,0.36314354,106010.0,106000.0,9.25501088]
[1762776244898,0.48291351,106010.0,106000.0,9.25601088]
[1762776245331,0.39932582,106010.0,106000.0,9.25601088]
[1762776249072,0.21066438,106010.0,106000.0,9.44469012]
[1762776249227,0.13714438,106010.0,106000.0,9.46027012]
[1762776249666,0.06181836,106010.0,106000.0,9.46027012]
[1762776249874,0.06181836,106010.0,106000.0,9.48336012]
[1762776250289,0.02563608,106010.0,106000.0,9.48336012]
[1762776250520,0.02563608,106010.0,106000.0,9.76743393]
[1762776250750,0.01764608,106010.0,106000.0,9.76743393]
[1762776251399,0.21429752,106010.0,106000.0,9.48336012]
[1762776251584,0.02563608,106010.0,106000.0,9.48336012]
[1762776251785,0.02563608,106010.0,106000.0,9.48236012]
[1762776252001,0.01864608,106010.0,106000.0,9.77143393]
[1762776252764,0.001,106010.0,106000.0,9.48736012]
[1762776252969,0.01851858,106010.0,106000.0,9.77143393]
[1762776253731,0.01851858,106010.0,106000.0,9.48736012]
[1762776255014,0.04248858,106010.0,106000.0,9.26001088]
[1762776255266,0.51522383,106010.0,106000.0,9.26001088]
[1762776255470,0.57616625,106010.0,106000.0,9.26001088]
[1762776255934,1.55479121,106010.0,106000.0,9.26001088]
[1762776256137,1.15515194,106010.0,106000.0,9.26001088]
[1762776256339,1.62491394,106010.0,106000.0,9.26001088]
[1762776256588,1.58005994,106010.0,106000.0,9.25801088]
[1762776257173,1.60432443,106010.0,106000.0,9.25501088]
[1762776257501,1.52399094,106010.0,106000.0,9.25701088]
[1762776257819,1.12299394,106010.0,106000.0,9.25701088]
[1762776258017,1.01649394,106010.0,106000.0,9.25801088]
[1762776258216,1.04175843,106010.0,106000.0,9.25801088]
[1762776258862,2.11324843,106010.0,106000.0,9.25801088]
[1762776259280,1.82917462,106010.0,106000.0,9.25801088]
[1762776259492,2.14709002,106010.0,106000.0,9.25801088]
[1762776259925,1.94162502,106010.0,106000.0,9.25801088]
[1762776260879,2.09412003,106010.0,106000.0,9.25801088]
[1762776261553,1.41534403,106010.0,106000.0,9.25801088]
[1762776263331,1.09234403,106010.0,106000.0,9.25801088]
[1762776263711,1.41534403,106010.0,106000.0,9.25801088]
[1762776263946,1.44126613,106010.0,106000.0,9.25801088]
[1762776264129,1.41534403,106010.0,106000.0,9.25801088]
[1762776264565,1.44126613,106010.0,106000.0,9.25801088]
[1762776265075,1.39643016,106010.0,106000.0,7.90598088]
[1762776265822,1.42235226,106010.0,106000.0,7.90598088]
[1762776266450,1.42235226,106010.0,106000.0,7.90398088]
[1762776266799,1.42335226,106010.0,106000.0,7.90298088]
[1762776267233,1.42435226,106010.0,106000.0,7.90298088]
[1762776269207,1.39843016,106010.0,106000.0,7.7653422]
[1762776269410,1.42435226,106010.0,106000.0,7.7653422]
[1762776269615,1.39843016,106010.0,106000.0,7.7653422]
[1762776270068,1.39853324,106010.0,106000.0,7.7653422]
[1762776272128,1.5377565,106010.0,106000.0,5.63434592]
[1762776272335,1.59161556,106010.0,106000.0,5.25338164]
[1762776272540,1.59161556,106010.0,106000.0,5.09617095]
[1762776272744,1.59161556,106010.0,106000.0,4.80726366]
[1762776272960,1.60853636,106010.0,106000.0,4.71175494]
[1762776273188,1.59054445,106010.0,106000.0,4.29938425]
[1762776273397,1.58954445,106010.0,106000.0,4.04710708]
[1762776273602,1.59354445,106010.0,106000.0,3.89729336]
[1762776273812,1.59854445,106010.0,106000.0,3.6954473]
[1762776274016,1.58182113,106010.0,106000.0,3.43194486]
[1762776274221,1.63787184,106010.0,106000.0,3.31268554]
[1762776274425,1.63787184,106010.0,106000.0,3.28435479]
[1762776274629,1.63787184,106010.0,106000.0,3.25602404]
[1762776274835,1.63787184,106010.0,106000.0,3.22769329]
[1762776275040,1.63787184,106010.0,106000.0,3.19936254]
[1762776275249,1.63787184,106010.0,106000.0,3.17103179]
[1762776275448,1.63787184,106010.0,106000.0,3.14270104]
[1762776275650,1.63787184,106010.0,106000.0,3.11437029]
[1762776275859,1.59623184,106010.0,106000.0,3.08603954]
[1762776276063,1.59623184,106010.0,106000.0,3.05770879]
[1762776276265,1.59623184,106010.0,106000.0,3.02937804]
[1762776276472,1.66621577,106010.0,106000.0,3.00104729]
[1762776276671,1.66621577,106010.0,106000.0,2.54040783]
[1762776277050,1.65710211,106010.0,106000.0,2.54040783]
[1762776278502,1.65711806,106010.0,106000.0,2.54040783]
[1762776278917,1.65711806,106010.0,106000.0,1.43800437]
[1762776279119,1.65711806,106010.0,106000.0,1.21246346]
[1762776279324,1.66624045,106010.0,106000.0,0.92771234]
[1762776279538,1.65711806,106010.0,106000.0,0.89938159]
[1762776279749,1.60647806,106010.0,106000.0,0.47361456]
[1762776280120,1.66211806,106010.0,106000.0,0.20615855]
[1762776280332,2.54791494,105970.0,105960.0,0.00027286]
[1762776280538,2.09614103,105970.0,105960.0,0.00041737]
[1762776280706,2.09544103,105970.0,105960.0,0.00041737]
[1762776280941,2.28417369,105970.0,105960.0,0.00041737]
[1762776281147,1.95810003,105970.0,105960.0,0.00041737]
[1762776281558,1.26471503,105970.0,105960.0,0.00041737]
[1762776281756,0.55573521,105970.0,105960.0,0.00041737]
[1762776281985,0.74446787,105970.0,105960.0,0.00041737]
[1762776282186,0.55573521,105970.0,105960.0,0.00041737]
[1762776282566,0.99330403,105970.0,105960.0,0.00241737]
[1762776282792,0.99330403,105970.0,105960.0,0.00341737]
[1762776284057,0.55673521,105970.0,105960.0,0.00341737]
[1762776284265,0.99330403,105970.0,105960.0,0.00341737]
[1762776284517,0.55673521,105970.0,105960.0,0.00341737]
[1762776285551,0.55673521,105970.0,105960.0,0.19216784]
[1762776285766,0.55673521,105970.0,105960.0,0.00341737]
[1762776286157,0.55673521,105970.0,105960.0,0.00435414]